bitfinex-derivatives/quotes_ETHF0:USTF0_20251007
["timestamp","ask_amount","ask_price","bid_price","bid_amount"]
[1759842603272,0.37872,4749.5,4749.2,4.66764]
[1759842603574,0.38105,4749.5,4749.4,0.8691]
[1759842603780,0.38105,4749.5,4749.4,1.0811]
[1759842604176,0.00233,4749.5,4749.4,1.0811]
[1759842604378,0.00233,4749.5,4749.4,1.45983]
[1759842604576,5.00233,4749.5,4749.4,0.83]
[1759842604882,0.00233,4749.5,4749.4,1.0811]
[1759842607273,0.37866,4750.3,4750.0,0.37868]
[1759842607472,3.5864,4751.0,4750.9,0.618]
[1759842607783,3.5864,4751.0,4750.9,0.3788]
[1759842608375,3.5864,4751.0,4750.9,0.8691]
[1759842608376,0.00180816,4751.0,4750.9,0.8691]
[1759842608581,0.00180816,4751.0,4750.9,1.0811]
[1759842608782,0.00180816,4751.0,4750.9,0.8691]
[1759842609091,0.00180816,4751.0,4750.9,1.0811]
[1759842609479,0.38040816,4751.0,4750.9,1.0811]
[1759842609678,0.38040816,4751.0,4750.9,0.8691]
[1759842609986,0.38040816,4751.0,4750.9,1.0811]
[1759842610176,0.00180816,4751.0,4750.9,1.0811]
[1759842610485,0.00180816,4751.0,4750.9,1.45971]
[1759842610884,0.00180816,4751.0,4750.9,1.0811]
[1759842614095,0.00180816,4751.0,4750.9,0.8691]
[1759842614286,0.00180816,4751.0,4750.9,1.0811]
[1759842616290,8.20960816,4751.0,4750.6,0.3788]
[1759842616490,8.20960816,4751.0,4750.5,0.1449]
[1759842616491,0.37862,4750.7,4750.5,0.1449]
[1759842616786,0.37862,4750.7,4750.6,0.3788]
[1759842616985,8.72587269,4750.6,4750.0,0.1449]
[1759842617186,8.72587269,4750.6,4750.0,0.3569]
[1759842617187,0.37867,4750.1,4750.0,0.3569]
[1759842617394,0.37867,4750.1,4750.0,0.5961]
[1759842617597,0.3787,4749.7,4749.0,3.3527]
[1759842617783,0.37875,4749.1,4749.0,4.055]
[1759842618888,0.37875,4749.1,4749.0,4.4338]
[1759842619090,0.37875,4749.1,4749.0,1.226]
[1759842619888,5.37875,4749.1,4749.0,0.7357]
[1759842620090,5.94689,4749.1,4748.6,0.3788]
[1759842620394,0.37878,4748.7,4748.5,0.1449]
[1759842620595,0.37878,4748.7,4748.2,0.3788]
[1759842620596,0.3788,4748.4,4748.2,0.3788]
[1759842621097,0.37884,4748.0,4747.9,0.8691]
[1759842622694,0.37884,4748.0,4747.9,0.5908]
[1759842622995,0.37884,4748.0,4747.9,0.8691]
[1759842624593,3.58657,4748.8,4748.7,0.4885]
[1759842624791,3.58657,4748.8,4748.7,1.0699]
[1759842628899,0.37877,4748.8,4748.7,1.0699]
[1759842629398,0.37877,4748.8,4748.7,0.3694]
[1759842629603,0.84295038,4748.8,4748.7,0.3694]
[1759842629893,0.84295038,4748.8,4748.7,0.6116]
[1759842630095,0.37877,4748.8,4748.7,0.3694]
[1759842630494,0.37877,4748.8,4748.7,0.6116]
[1759842630701,0.37877,4748.8,4748.7,0.8579]
[1759842630894,0.37877,4748.8,4748.7,1.0699]
[1759842632891,0.37877,4748.8,4748.7,4.2777]
[1759842633290,0.37877,4748.9,4748.7,3.9083]
[1759842633597,0.37877,4748.9,4748.8,0.8579]
[1759842634600,0.37871,4749.6,4749.5,0.6382]
[1759842634805,0.37871,4749.6,4749.5,1.0076]
[1759842635305,0.37867,4750.1,4750.0,1.0076]
[1759842635494,0.37867,4750.1,4750.0,1.2196]
[1759842636100,0.37867,4750.1,4750.0,0.9733]
[1759842636996,0.37867,4750.1,4750.0,1.2196]
[1759842637704,0.37867,4750.1,4750.0,0.9733]
[1759842638101,0.37867,4750.1,4750.0,1.2196]
[1759842638393,0.37867,4750.1,4750.0,0.7311]
[1759842638794,0.37867,4750.1,4750.0,0.9729]
[1759842640897,0.37867,4750.1,4749.5,0.6222]
[1759842640898,0.37871,4749.6,4749.5,0.6222]
[1759842641093,0.37871,4749.6,4749.0,0.1497]
[1759842641300,0.37879,4748.6,4748.5,0.4909]
[1759842642201,0.8434107,4748.6,4748.5,0.4909]
[1759842642702,0.37883,4748.1,4748.0,0.212]
[1759842642902,0.37883,4748.1,4748.0,0.3412]
[1759842643095,0.37883,4748.1,4748.0,0.4836]
[1759842643297,3.2078,4748.3,4747.8,0.00206451]
[1759842643496,3.2078,4748.3,4745.3,1.52649704]
[1759842643497,0.4052,4747.1,4746.8,0.3412]
[1759842643706,0.4052,4747.1,4747.0,0.4836]
[1759842643707,0.78411,4747.1,4747.0,0.4836]
[1759842644398,0.78564524,4747.1,4747.0,0.48616976]
[1759842645101,0.78564524,4747.1,4747.0,0.95866976]
[1759842646493,0.38044524,4747.1,4747.0,0.95866976]
[1759842646694,0.58304524,4747.1,4747.0,0.95866976]
[1759842647303,0.78564524,4747.1,4747.0,0.95866976]
[1759842649899,0.78564524,4747.1,4747.0,0.72796976]
[1759842650104,11.79542484,4747.1,4747.0,0.00256976]
[1759842650602,11.79542484,4747.1,4747.0,0.34376976]
[1759842650807,0.78564524,4747.1,4747.0,0.72796976]
[1759842651603,0.91224524,4747.1,4747.0,0.00256976]
[1759842652112,0.91224524,4747.1,4747.0,0.34376976]
[1759842652910,0.91224524,4747.1,4747.0,0.00256976]
[1759842653208,0.91224524,4747.1,4747.0,9.76e-06]
[1759842654514,0.88955,4746.6,4746.5,0.5093]
[1759842654815,0.76795,4746.6,4746.5,1.0051]
[1759842655409,0.00153524,4747.1,4747.0,0.1368]
[1759842655609,0.19603524,4747.1,4747.0,3.9629]
[1759842655805,0.76944524,4747.1,4747.0,0.7551]
[1759842656009,0.37895,4746.6,4746.5,0.64059982]
[1759842656210,0.57345,4746.6,4746.5,1.21949982]
[1759842656717,0.76795,4746.6,4746.5,1.21949982]
[1759842658206,0.88955,4746.6,4746.5,0.72369982]
[1759842658414,0.88955,4746.6,4746.5,0.51169982]
[1759842658618,0.88955,4746.6,4746.5,0.00239982]
[1759842658917,3.59114576,4746.6,4746.5,0.00239982]
[1759842659720,3.59114576,4746.6,4746.5,9.82e-06]
[1759842660516,0.76803,4745.6,4745.5,3.6016]
[1759842660709,0.88963,4745.6,4745.5,3.3502]
[1759842660917,0.37897,4746.3,4746.2,0.4958]
[1759842661214,0.69654524,4747.1,4747.0,0.1368]
[1759842661420,0.89104524,4747.1,4747.0,0.5037]
[1759842661723,0.89104524,4747.1,4747.0,0.50520118]
[1759842663318,0.89104524,4747.1,4747.0,0.00150118]
[1759842666529,0.37901,4745.8,4745.6,0.5789]
[1759842666725,0.389,4745.7,4745.6,0.5789]
[1759842667023,0.389,4745.7,4745.2,0.5789]
[1759842667024,0.94758,4745.6,4745.2,0.5789]
[1759842667232,0.76805,4745.3,4745.2,0.8303]
[1759842667424,0.76805,4745.3,4745.2,1.07723285]
[1759842668226,0.57355,4745.3,4745.2,1.07723285]
[1759842669124,0.37904,4745.5,4745.4,0.8627]
[1759842669430,0.37901,4745.8,4745.6,0.8627]
[1759842669623,0.37901,4745.8,4745.7,0.8627]
[1759842669824,0.1216,4746.3,4745.8,0.3669]
[1759842669825,0.37901,4745.9,4745.8,0.3669]
[1759842670030,0.37901,4745.9,4745.8,0.8627]
[1759842670429,0.57351,4745.9,4745.8,0.8627]
[1759842670833,0.88963,4745.6,4745.5,3.3446]
[1759842671031,0.88963,4745.6,4745.5,0.7157]
[1759842671526,3.2078,4746.1,4745.5,0.9995]
[1759842671728,3.2078,4746.1,4746.0,0.6326]
[1759842671729,0.1945,4746.1,4746.0,0.6326]
[1759842671927,0.57349,4746.1,4746.0,0.6326]
[1759842672230,0.57349,4746.1,4746.0,0.9995]
[1759842672528,0.76799,4746.1,4746.0,0.9995]
[1759842673328,0.76799,4746.1,4746.0,0.7551]
[1759842675330,0.76801,4745.8,4745.7,0.5789]
[1759842676132,0.76801,4745.8,4745.7,0.3669]
[1759842676732,0.88961,4745.8,4745.7,0.3669]
[1759842677529,0.76801,4745.8,4745.7,0.6183]
[1759842679634,0.88961,4745.8,4745.7,0.3669]
[1759842679935,0.88962,4745.7,4745.6,3.2078]
[1759842680137,0.88962,4745.7,4745.6,3.5747]
[1759842681237,0.76805,4745.3,4745.2,0.00253285]
[1759842681537,0.88965,4745.3,4745.2,0.00253285]
[1759842681840,1.3575063,4745.3,4745.2,0.00253285]
[1759842682439,1.3575063,4745.3,4745.2,0.36943285]
[1759842684542,0.76805,4745.3,4745.2,0.84753285]
[1759842685342,0.72845,4745.3,4745.2,0.84753285]
[1759842685941,0.55375,4745.3,4745.2,0.84753285]
[1759842686545,0.72845,4745.3,4745.2,0.84753285]
[1759842687041,0.55375,4745.3,4745.2,0.84753285]
[1759842688138,0.55375,4745.3,4745.2,1.05953285]
[1759842688340,0.83765,4745.3,4745.2,0.58143285]
[1759842688946,0.72845,4745.3,4745.2,0.80853285]
[1759842690141,3.3825,4746.1,4746.0,0.7193]
[1759842690440,0.4677534,4746.1,4746.0,0.946]
[1759842690644,0.1747,4746.7,4746.6,0.5786]
[1759842690840,0.72834,4746.7,4746.6,0.5786]
[1759842691035,1.19598403,4746.7,4746.6,0.5786]
[1759842691240,0.64234403,4746.7,4746.6,0.8053]
[1759842691842,0.1747,4746.7,4746.6,0.8053]
[1759842692540,0.1747,4746.7,4746.6,1.0173]
[1759842692741,0.55514524,4747.1,4747.0,0.946]
[1759842692941,1.02275831,4747.1,4747.0,1.158]
[1759842693138,1.19745831,4747.1,4747.0,1.158]
[1759842693649,0.72984524,4747.1,4747.0,1.158]
[1759842694145,0.72984524,4747.1,4747.0,0.9313]
[1759842694355,0.72984524,4747.1,4747.0,1.158]
[1759842694553,0.83904524,4747.1,4747.0,0.7042]
[1759842694848,0.72984524,4747.1,4747.0,0.9313]
[1759842695150,0.72984524,4747.1,4747.0,1.158]
[1759842695351,0.72984524,4747.1,4747.0,4.3658]
[1759842695739,0.72984524,4747.1,4747.0,4.1391]
[1759842696851,0.83904524,4747.1,4747.0,4.1391]
[1759842697152,0.83904524,4747.1,4747.0,3.912]
[1759842697555,0.72984524,4747.1,4747.0,4.1391]
[1759842697955,0.72984524,4747.1,4747.0,3.912]
[1759842698253,0.72984524,4747.1,4747.0,0.7042]
[1759842699453,0.83294524,4747.1,4747.0,0.7042]
[1759842699952,0.83294524,4747.1,4747.0,0.212]
[1759842700755,0.83294524,4747.1,4747.0,0.5638]
[1759842701150,0.70875,4746.6,4746.5,3.9348]
[1759842701346,0.70875,4746.6,4746.5,4.1468]
[1759842701551,0.81185,4746.6,4746.5,3.9123]
[1759842701750,0.81185,4746.6,4746.5,3.7003]
[1759842701952,0.70875,4746.6,4746.5,3.9123]
[1759842702250,0.70875,4746.6,4746.5,4.1468]
[1759842703757,0.70875,4746.6,4746.5,4.3727]
[1759842704657,0.37895,4746.6,4746.5,4.3727]
[1759842705156,0.70875,4746.6,4746.5,4.3727]
[1759842706254,0.54385,4746.6,4746.5,4.3727]
[1759842706460,0.71024524,4747.1,4747.0,0.7188]
[1759842706757,0.81334524,4747.1,4747.0,0.4843]
[1759842707452,0.81183,4746.8,4746.7,0.5638]
[1759842707654,0.70873,4746.8,4746.7,0.5638]
[1759842707856,0.70873,4746.8,4746.7,0.7983]
[1759842708452,0.1649,4746.8,4746.7,1.40314]
[1759842708761,0.00153524,4747.1,4747.0,1.32362]
[1759842708960,0.00153524,4747.1,4747.0,4.74342]
[1759842709360,0.16643524,4747.1,4747.0,4.74342]
[1759842709559,0.33133524,4747.1,4747.0,4.1386]
[1759842709758,0.33133524,4747.1,4747.0,3.9041]
[1759842709962,0.16643524,4747.1,4747.0,4.3645]
[1759842710156,0.16643524,4747.1,4747.0,4.1525]
[1759842710462,0.16643524,4747.1,4747.0,4.3645]
[1759842712364,0.33133524,4747.1,4747.0,4.3645]
[1759842713468,0.00153524,4747.1,4747.0,4.3645]
[1759842716569,0.16127272,4749.1,4747.0,4.3645]
[1759842716570,3.2078,4748.8,4748.5,0.623]
[1759842716767,0.3154,4748.8,4748.6,0.211]
[1759842716972,0.3154,4748.3,4748.2,0.8147]
[1759842717272,0.3154,4748.3,4748.2,1.0257]
[1759842717775,0.31758865,4748.3,4748.2,1.0280539]
[1759842718674,0.41608865,4748.3,4748.2,0.0023539]
[1759842718874,0.41608865,4748.3,4748.2,0.2133539]
[1759842719371,0.41608865,4748.3,4748.2,0.0023539]
[1759842719575,0.41608865,4748.3,4748.2,0.2133539]
[1759842719969,0.88320155,4748.3,4748.2,0.2133539]
[1759842720571,0.88320155,4748.3,4748.2,0.0023539]
[1759842722470,0.62700155,4748.3,4748.2,1.0280539]
[1759842722677,0.00218865,4748.3,4748.2,4.2358539]
[1759842730084,0.31758865,4748.3,4748.2,4.2358539]
[1759842731182,0.31758865,4748.3,4748.2,0.0023539]
[1759842731183,0.41608865,4748.3,4748.2,0.0023539]
[1759842732280,0.41608865,4748.3,4748.2,0.3384539]
[1759842732281,0.88279769,4748.3,4748.2,0.3384539]
[1759842732486,0.88279769,4748.3,4748.2,0.0023539]
[1759842733681,5.88279769,4748.3,4748.2,0.0023539]
[1759842736787,8.57124767,4748.3,4748.2,0.0023539]
[1759842738493,8.57124767,4748.3,4748.2,0.3384539]
[1759842738990,8.57124767,4748.3,4748.2,0.0023539]
[1759842739186,0.46531242,4748.3,4748.2,9.4036739]
[1759842739379,3.74425,4749.1,4749.0,0.9591]
[1759842739585,3.5232,4749.1,4749.0,0.9591]
[1759842740086,0.3787,4749.7,4749.5,0.1444]
[1759842740290,0.6960148,4749.7,4749.6,0.5787]
[1759842740682,0.7945148,4749.7,4749.6,0.3361]
[1759842741393,0.6960148,4749.7,4749.6,0.3361]
[1759842741594,0.6960148,4749.7,4749.6,0.5787]
[1759842741990,0.7945148,4749.7,4749.6,0.3361]
[1759842742682,0.0019148,4749.7,4749.6,0.5787]
[1759842742989,0.0019148,4749.7,4749.6,5.8147]
[1759842743794,0.0019148,4749.7,4749.6,0.8147]
[1759842743997,0.0019148,4749.7,4749.6,1.0257]
[1759842745094,0.0019148,4749.7,4749.6,0.8147]
[1759842745393,0.1404148,4749.7,4749.6,1.0257]
[1759842746191,0.16888625,4749.7,4749.6,1.0257]
[1759842747301,0.30738625,4749.7,4749.6,1.0257]
[1759842747503,0.30738625,4749.7,4749.6,0.8147]
[1759842747899,0.30738625,4749.7,4749.6,1.0257]
[1759842748890,0.30738625,4749.7,4749.6,0.8147]
[1759842749100,0.3636,4749.5,4749.4,3.2078]
[1759842749295,0.39207145,4749.5,4749.4,3.2078]
[1759842749595,0.02847145,4749.5,4749.4,3.9978]
[1759842749801,0.02847145,4749.5,4749.4,4.2088]
[1759842750202,0.30547145,4749.5,4749.4,4.2088]
[1759842750591,0.30547145,4749.5,4749.4,0.5583]
[1759842750796,0.39207145,4749.5,4749.4,0.3225]
[1759842750994,0.39207145,4749.5,4749.4,0.5335]
[1759842751190,0.30547145,4749.5,4749.4,0.5335]
[1759842751391,0.30547145,4749.5,4749.4,0.7693]
[1759842752401,0.30547145,4749.5,4749.4,0.5583]
[1759842752602,0.30547145,4749.5,4749.4,0.7693]
[1759842753402,0.30547145,4749.5,4749.4,0.5583]
[1759842753602,0.30547145,4749.5,4749.4,0.7693]
[1759842754403,0.30547145,4749.5,4749.4,0.5583]
[1759842754604,0.30547145,4749.5,4749.4,0.7693]
[1759842755499,0.30547145,4749.5,4749.4,0.5583]
[1759842755701,0.39207145,4749.5,4749.4,0.3225]
[1759842755903,0.65575,4749.1,4749.0,0.4669]
[1759842756103,0.65575,4749.1,4749.0,0.9103]
[1759842756403,0.68422145,4749.1,4749.0,0.9103]
[1759842756706,0.68422145,4749.1,4749.0,1.142]
[1759842756902,0.30547145,4749.1,4749.0,1.142]
[1759842757302,0.16697145,4749.1,4749.0,1.142]
[1759842757501,0.02847145,4749.1,4749.0,6.142]
[1759842759208,0.0019148,4749.7,4749.6,0.82591]
[1759842759414,0.0019148,4749.7,4749.6,1.38971]
[1759842761605,0.0019148,4749.7,4749.6,1.011]
[1759842767916,0.0019148,4749.7,4749.6,1.38971]
[1759842768914,0.1765148,4749.7,4749.6,1.38971]
[1759842769219,0.5552148,4749.7,4749.6,1.38971]
[1759842769623,0.7298148,4749.7,4749.6,1.17871]
[1759842769813,0.7298148,4749.7,4749.6,1.011]
[1759842770016,0.7298148,4749.7,4749.6,0.3528]
[1759842770215,0.83701,4749.6,4749.5,3.2078]
[1759842770416,1.30470013,4749.6,4749.5,3.4188]
[1759842770619,1.30470013,4749.6,4749.5,3.7716]
[1759842771017,1.19560013,4749.6,4749.5,4.1285]
[1759842771325,0.84640013,4749.6,4749.5,4.3479]
[1759842772029,1.02100013,4749.6,4749.5,4.3479]
[1759842773226,1.19560013,4749.6,4749.5,1.1401]
[1759842773428,1.29910013,4749.6,4749.5,0.211]
[1759842773928,1.29910013,4749.6,4749.5,0.6959]
[1759842774126,1.29910013,4749.6,4749.5,0.4849]
[1759842774328,1.29910013,4749.6,4749.5,0.6959]
[1759842775726,1.19560013,4749.6,4749.5,0.6959]
[1759842776229,1.19560013,4749.6,4749.5,0.9278]
[1759842777830,1.29910013,4749.6,4749.5,0.9278]
[1759842778031,1.29910013,4749.6,4749.5,0.6959]
[1759842778634,1.29910013,4749.6,4749.5,0.211]
[1759842782341,1.19560013,4749.6,4749.5,1.1437]
[1759842783039,1.19560013,4749.6,4749.5,0.9278]
[1759842784139,0.84640013,4749.6,4749.5,1.1437]
[1759842784638,1.01200013,4749.6,4749.5,1.1437]
[1759842785240,1.17760013,4749.6,4749.5,1.1437]
[1759842786138,1.17760013,4749.6,4749.5,0.9278]
[1759842786328,1.28110013,4749.6,4749.5,0.3447]
[1759842786941,1.28110013,4749.6,4749.5,0.4849]
[1759842787242,1.28110013,4749.6,4749.5,0.7168]
[1759842787243,1.17760013,4749.6,4749.5,0.7168]
[1759842788639,1.28110013,4749.6,4749.5,0.7168]
[1759842789645,0.3312,4749.1,4748.6,0.3447]
[1759842789833,0.81348,4748.7,4748.6,0.5557]
[1759842790037,0.70998,4748.7,4748.6,0.7876]
[1759842790239,0.37877,4748.8,4748.6,1.38229]
[1759842790440,0.70993,4749.3,4749.2,0.5766]
[1759842790641,1.28124102,4749.3,4749.2,0.5557]
[1759842791739,0.4347,4748.9,4748.8,0.3447]
[1759842792035,0.37879,4748.6,4748.5,3.6969]
[1759842792235,0.37879,4748.6,4748.2,0.0023539]
[1759842792236,0.71001,4748.3,4748.2,0.0023539]
[1759842792443,0.81351,4748.3,4748.2,0.5580539]
[1759842793138,0.81351,4748.3,4748.2,0.0023539]
[1759842793344,8.50756363,4748.3,4748.2,0.0023539]
[1759842793837,0.37886,4747.7,4747.6,0.211]
[1759842794138,0.80356,4747.7,4747.6,0.211]
[1759842794344,0.80356,4747.7,4747.6,0.5557]
[1759842794841,0.80356,4747.7,4747.6,0.55722144]
[1759842795843,0.80356,4747.7,4747.6,0.21252144]
[1759842796234,0.80356,4747.7,4747.6,0.00152144]
[1759842798945,0.80356,4747.7,4747.6,0.34622144]
[1759842802941,0.70246,4747.7,4747.6,0.57812144]
[1759842803646,0.79196,4747.7,4747.6,0.57812144]
[1759842803846,0.79196,4747.7,4747.6,0.34622144]
[1759842804446,0.66531,4747.1,4747.0,0.4811]
[1759842804640,0.75481,4747.1,4747.0,0.4811]
[1759842804840,0.66531,4747.1,4747.0,0.7001]
[1759842805442,0.66531,4747.1,4747.0,0.70274386]
[1759842805643,0.75481,4747.1,4747.0,0.70274386]
[1759842805845,0.75481,4747.1,4747.0,0.48374386]
[1759842807048,0.75481,4747.1,4747.0,0.00264386]
[1759842807647,0.75481,4747.1,4747.0,0.34354386]
[1759842809847,0.75481,4747.1,4747.0,0.00264386]
[1759842811451,0.52211,4747.1,4747.0,4.11574386]
[1759842811652,0.66531,4747.1,4747.0,1.11894386]
[1759842811944,0.75481,4747.1,4747.0,0.34354386]
[1759842812549,0.75481,4747.1,4747.0,0.00264386]
[1759842812848,0.75489,4746.1,4746.0,3.348]
[1759842813053,0.75489,4746.1,4746.0,3.2078]
[1759842813248,0.66542,4745.7,4745.6,0.5599]
[1759842813845,0.66798398,4745.7,4745.6,0.56186402]
[1759842814253,0.00256398,4745.7,4745.6,0.77266402]
[1759842814555,0.28896398,4745.7,4745.6,0.98366402]
[1759842820450,0.70494398,4746.2,4745.6,0.98366402]
[1759842820651,0.37899,4746.1,4746.0,0.4631]
[1759842820846,3.15831875,4746.1,4746.0,0.4631]
[1759842821248,3.15831875,4746.1,4746.0,0.1334]
[1759842821448,3.1604895,4746.1,4746.0,0.1334]
[1759842822047,3.1604895,4746.1,4745.7,0.3297]
[1759842822048,0.37901,4745.8,4745.7,0.3297]
[1759842823652,3.58681,4745.8,4745.6,0.00196402]
[1759842823858,0.46704375,4745.7,4745.6,0.00196402]
[1759842824051,0.37907,4745.1,4745.0,0.1346]
[1759842824251,0.37907,4745.1,4745.0,0.4643]
[1759842824953,0.37907,4745.1,4745.0,0.46640472]
[1759842825548,0.37907,4745.1,4745.0,0.00210472]
[1759842825853,0.37907,4745.1,4745.0,0.46520472]
[1759842826054,0.37905,4745.3,4745.1,0.2184]
[1759842826245,0.37905,4745.3,4745.2,0.5481]
[1759842826652,0.00217075,4746.1,4745.3,0.5481]
[1759842826858,0.37904,4745.5,4745.4,0.7651]
[1759842827057,0.37904,4745.5,4745.4,0.3297]
[1759842827857,0.00217075,4746.1,4746.0,0.4631]
[1759842828058,0.84780423,4746.1,4746.0,0.4631]
[1759842828254,0.37902,4745.7,4745.6,0.3297]
[1759842829558,0.37902,4745.7,4745.5,0.1334]
[1759842829559,0.37904,4745.4,4745.3,0.3297]
[1759842830061,0.37907,4745.1,4745.0,0.13550472]
[1759842830554,0.37907,4745.1,4745.0,0.46520472]
[1759842833762,3.15739187,4745.1,4745.0,0.00210472]
[1759842834563,3.62421333,4745.1,4745.0,0.00210472]
[1759842836563,3.62421333,4745.1,4745.0,0.34080472]
[1759842836768,3.62421333,4745.1,4745.0,0.46740472]
[1759842837063,3.24514333,4745.1,4745.0,0.46740472]
[1759842837268,0.37902,4745.8,4745.1,0.3387]
[1759842837570,2.78380166,4745.7,4745.5,0.1266]
[1759842837869,0.37904,4745.4,4745.3,0.3387]
[1759842838069,0.37907,4745.1,4745.0,3.33650472]
[1759842838264,0.37907,4745.1,4745.0,3.67520472]
[1759842838666,3.11373972,4745.1,4745.0,0.00210472]
[1759842838866,3.58078833,4745.1,4745.0,0.00210472]
[1759842839371,3.58078833,4745.1,4745.0,0.46740472]
[1759842840571,3.58078833,4745.1,4745.0,0.00210472]
[1759842841165,3.58101575,4745.1,4745.0,0.00210472]
[1759842841567,0.37911,4744.6,4744.5,0.211]
[1759842841771,0.37911,4744.6,4744.5,0.6763]
[1759842841970,0.3791,4744.7,4744.5,0.6763]
[1759842842165,0.3791,4744.7,4744.6,0.3387]
[1759842842369,3.11373972,4745.1,4745.0,0.1266]
[1759842842572,3.58137459,4745.1,4745.0,0.46802416]
[1759842842774,3.79237459,4745.1,4745.0,0.46802416]
[1759842843869,3.58137459,4745.1,4745.0,0.46802416]
[1759842844067,3.20230459,4745.1,4745.0,0.46802416]
[1759842845281,2.73466972,4745.1,4745.0,0.90702416]
[1759842845472,0.37906,4745.3,4745.2,0.7777]
[1759842845673,0.846753,4745.3,4745.2,0.7777]
[1759842846377,0.37906,4745.3,4745.2,0.7777]
[1759842847477,0.37906,4745.3,4745.2,0.3387]
[1759842847979,0.84690077,4745.3,4745.2,0.3387]
[1759842848181,0.37906,4745.3,4745.2,0.3387]
[1759842848381,0.37906,4745.2,4745.1,0.3387]
[1759842848979,2.70022252,4745.5,4745.1,0.5488]
[1759842849281,0.37906,4745.3,4745.2,0.5488]
[1759842849682,3.4188,4745.8,4745.5,0.1266]
[1759842849882,0.37903,4745.6,4745.5,0.4653]
[1759842850177,0.37907,4745.1,4745.0,3.33712416]
[1759842850379,0.37907,4745.1,4745.0,0.12932416]
[1759842850380,0.84724011,4745.1,4745.0,0.12932416]
[1759842850881,0.84724011,4745.1,4745.0,0.46802416]
[1759842851478,0.37907,4745.1,4745.0,0.46802416]
[1759842853181,0.84748718,4745.1,4745.0,0.46802416]
[1759842865401,0.46841718,4745.1,4745.0,1.26420416]
[1759842865601,0.38116075,4746.1,4746.0,0.6672]
[1759842865900,0.84971087,4746.1,4746.0,3.875]
[1759842866196,0.84971087,4746.1,4746.0,0.4545]
[1759842869399,0.84971087,4746.1,4746.0,0.1231]
[1759842869790,0.84971087,4746.1,4746.0,0.4545]
[1759842877492,0.47072087,4746.1,4746.0,0.4545]
[1759842877697,0.47072087,4746.1,4746.0,1.1107]
[1759842877899,0.47072087,4746.1,4746.0,4.3185]
[1759842878102,0.00217075,4746.1,4746.0,4.3185]
[1759842878508,0.00217075,4746.1,4746.0,4.0821]
[1759842879002,0.00217075,4746.1,4746.0,4.2882]
[1759842881704,0.00217075,4746.1,4746.0,3.8733]
[1759842883904,0.00217075,4746.1,4746.0,0.6655]
[1759842884108,0.00217075,4746.1,4745.5,0.1231]
[1759842884109,0.37902,4745.7,4745.5,0.1231]
[1759842884512,2.74842281,4745.6,4745.5,0.1231]
[1759842884812,2.74842281,4745.6,4745.5,0.4312]
[1759842887116,0.37902,4745.7,4745.5,0.64]
[1759842887315,0.37902,4745.7,4745.6,0.3081]
[1759842887812,0.37902,4745.7,4745.6,0.5169]
[1759842889210,0.38116075,4746.1,4746.0,0.1212]
[1759842889514,3.62724192,4746.1,4746.0,0.4293]
[1759842890308,3.62724192,4746.1,4745.5,0.1231]
[1759842890309,0.37903,4745.6,4745.5,0.1212]
[1759842890514,0.84705354,4745.6,4745.5,0.4293]
[1759842892311,3.5966995,4745.6,4745.5,0.4293]
[1759842893714,3.5966995,4745.6,4744.8,3.14551416]
[1759842893715,0.37908,4745.0,4744.8,3.14551416]
[1759842894019,0.6509,4745.1,4745.0,0.3347]
[1759842894216,0.6509,4744.9,4744.8,2.76642416]
[1759842894412,0.4111,4744.1,4744.0,0.3326]
[1759842894615,0.37913,4744.3,4744.0,4.14015]
[1759842894816,0.59053,4744.3,4744.2,0.432]
[1759842895016,0.2114,4744.3,4744.2,0.432]
[1759842895217,0.4111,4744.3,4744.2,0.432]
[1759842895822,0.4111,4744.3,4744.2,0.7448]
[1759842896023,0.6509,4744.3,4744.2,0.7448]
[1759842896422,0.4111,4744.3,4744.2,0.7448]
[1759842896821,0.4111,4744.3,4744.2,0.9558]
[1759842898926,0.2114,4744.3,4744.2,0.9558]
[1759842899625,0.59053,4744.4,4744.3,0.7448]
[1759842899828,1.03003,4744.4,4744.3,0.5242]
[1759842900324,1.03003,4744.4,4744.3,0.3128]
[1759842902428,0.79023,4744.4,4744.3,0.5242]
[1759842902625,0.79023,4744.4,4744.3,0.7448]
[1759842903127,1.03003,4744.4,4744.3,0.7448]
[1759842904224,1.03003,4744.4,4744.0,3.33063136]
[1759842904225,0.79025,4744.1,4744.0,3.20943136]
[1759842904430,1.03005,4744.1,4744.0,3.42043136]
[1759842904929,1.03005,4744.1,4744.0,3.20943136]
[1759842905224,1.03005,4744.1,4744.0,3.42043136]
[1759842906721,1.03005,4744.1,4744.0,3.73323136]
[1759842908429,0.6509,4744.1,4744.0,3.73323136]
[1759842908730,0.6509,4744.1,4744.0,3.52223136]
[1759842909429,1.03005,4744.1,4744.0,3.90139136]
[1759842909929,1.03005,4744.1,4744.0,3.52223136]
[1759842910525,1.03005,4744.1,4744.0,3.20943136]
[1759842911130,1.03005,4744.1,4744.0,3.58859136]
[1759842911337,1.03005,4744.1,4744.0,3.52223136]
[1759842911524,1.03005,4744.1,4744.0,4.45669136]
[1759842911525,0.4111,4744.1,4744.0,4.45669136]
[1759842911722,0.79025,4744.1,4744.0,4.45669136]
[1759842911925,1.03005,4744.1,4744.0,4.23609136]
[1759842912226,0.61892,4744.6,4744.5,0.37912]
[1759842912530,0.59052,4744.6,4744.5,1.45822]
[1759842912725,0.79022,4744.6,4744.5,1.45822]
[1759842913326,0.4111,4744.6,4744.5,1.45822]
[1759842913528,1.03001,4744.6,4744.5,0.211]
[1759842913829,1.03001,4744.6,4744.5,0.59012]
[1759842914033,1.03001,4744.6,4744.5,0.90292]
[1759842914835,1.03001,4744.6,4744.5,0.211]
[1759842915132,0.6509,4744.4,4744.3,0.69193]
[1759842915333,0.6509,4744.4,4744.3,0.90333]
[1759842915834,0.6509,4744.4,4744.3,1.11433]
[1759842916133,1.03002,4744.4,4744.3,0.90293]
[1759842916334,0.6509,4744.4,4744.3,0.59013]
[1759842917033,0.6509,4744.4,4744.3,0.90293]